{"text_format":"1","workbook":"xlsx","n_sheets":5,"sheets":["Kotisivu","Auto","Julkinen liikenne","Aktiivinen liikenne","Ciry Bike Finland - data"],"not_rendered":{"charts":2,"images":31,"macros":1,"external_links":0,"defined_names":192,"comments":3,"pivot_tables":0},"unopened":[],"bounds":{"document_bytes":16777216,"sheet_cells":100000,"rows_first":2000,"rows_last":500,"rows_between":2000,"halvings":0,"cell_chars":16384,"cell_head_chars":4096},"cells_cut":0,"cells_raw":0,"read":"whole","date_system":"1900"}

{"sheet":"Kotisivu","index":0,"n_rows":30,"n_cols":4,"rows_kept":30,"cut":false,"hidden":false,"merged":[]}
["Vaihtoehtoisten liikkumismuotojen laskuri KULKURI"]
["Versio 1.1"]
["Tervetuloa KULKURIin, vaihtoehtoisten liikkumismuotojen laskuriin. Laskuri on tarkoitettu auton omistamiselle vaihtoehtoisten liikkumistapojen ja -palveluiden vuotuisten kustannusten ja elinkaaripäästöjen laskemiseen."]
["Laskuri on kehitetty CANEMURE LIFE IP -projektissa."]
[]
["Huom: Jos laskuri ei toimi suoraan latauksen jälkeen, siirrä tiedosto latauskansiosta muuhun kansioon."]
[]
["Kehittäjä:","Jáchym Judl","jachym.judl@syke.fi"]
["Viimeisin päivitys:","2020-12-15"]
[]
["Määritä liikkumistarpeesi välilehdissä \"Auto\", \"Julkinen liikenne\" ja \"Aktiivinen liikenne\". Napsauttamalla alla olevia hyperlinkkejä, sinut ohjataan sinne, missä tietojasi tarvitaan."]
["Näin korostetut solut edellyttävät tiedon syöttöä. Täytä omat parametriarvot tai valitse vaihtoehto pudotusvalikosta."]
["Näin korostetut solut sisältävät oletusparametreja. Tarvittaessa käyttäjä voi muokata niitä."]
[]
["Liikkumistapa","Vuotuiset kustannukset ","Vuotuiset päästöt"]
["Autonvuokraus",{"$f":"Auto!C4","v":0},{"$f":"Auto!C5","v":0},"kg CO2e"]
["Car rental (peer-to-peer)",{"$f":"Auto!#REF!","v":{"$error":"#REF!"}},{"$f":"Auto!#REF!","v":{"$error":"#REF!"}},"kg CO2e"]
["Auton jakaminen",{"$f":"Auto!Q4","v":0},{"$f":"Auto!Q5","v":0},"kg CO2e"]
["Taksi",{"$f":"Auto!Z4","v":0},{"$f":"Auto!Z5","v":0},"kg CO2e"]
["Kaupunkiseudun julkinen liikenne",{"$f":"'Julkinen liikenne'!C4","v":0},{"$f":"'Julkinen liikenne'!C5","v":0},"kg CO2e"]
["Kaukoliikenne",{"$f":"'Julkinen liikenne'!C9","v":0},{"$f":"'Julkinen liikenne'!C10","v":0},"kg CO2e"]
["Polkupyörä",{"$f":"'Aktiivinen liikenne'!B10+'Aktiivinen liikenne'!B32","v":0},{"$f":"'Aktiivinen liikenne'!B11+'Aktiivinen liikenne'!B33","v":0},"kg CO2e"]
["Sähköpyörä",{"$f":"'Aktiivinen liikenne'!F10*'Aktiivinen liikenne'!F3","v":0},{"$f":"'Aktiivinen liikenne'!F11*'Aktiivinen liikenne'!F3","v":0},"kg CO2e"]
["(Sähkö) laatikkopyörä",{"$f":"'Aktiivinen liikenne'!J10","v":0},{"$f":"'Aktiivinen liikenne'!J11","v":0},"kg CO2e"]
["Kaupunkipyörät",{"$f":"'Aktiivinen liikenne'!O6","v":0},{"$f":"'Aktiivinen liikenne'!O8","v":0},"kg CO2e"]
[null,{"$f":"SUMIF(B16:B25,\">0\")","v":0},{"$f":"ROUND(SUMIF(C16:C25,\">0\"),0)&\" kg CO2e\"","v":"0 kg CO2e"}]
["Kokonaisajo, auto:",null,null,{"$f":"(Auto!C3+Auto!Q3+Auto!Z3)& \" km\"","v":"0 km"}]
["Kaupunkialueen julkisella liikenteellä kuljettu matka:",null,null,{"$f":"('Julkinen liikenne'!$C$3)& \" km\"","v":"0 km"}]
["Julkisella kaukoliikenteellä kuljettu matka:",null,null,{"$f":"('Julkinen liikenne'!$C$8)& \" km\"","v":"0 km"}]
["Pyörällä kuljettu matka:",null,null,{"$f":"ROUND(('Aktiivinen liikenne'!$B$8+'Aktiivinen liikenne'!$B$30+'Aktiivinen liikenne'!$F$8+'Aktiivinen liikenne'!$J$8+'Aktiivinen liikenne'!$O$5),0)& \" km\"","v":"0 km"}]

{"sheet":"Auto","index":1,"n_rows":65,"n_cols":32,"rows_kept":65,"cut":false,"hidden":false,"merged":[]}
["Autonvuokraus",null,null,null,null,null,null,null,"valitse",null,null,null,null,null,"Auton jakaminen",null,null,null,null,null,null,null,null,"Taksi",null,null,null,null,null,null,null,"Van rental (possibly to be added)"]
["Yhteenveto:",null,null,null,null,null,"Vuokrakulut",null,"Päivävuokraus",50,"€/vrk",null,null,null,"Yhteenveto:",null,null,null,null,null,null,null,null,"Yhteenveto:"]
["Vuokra-autolla ajettu kokonaismatka vuodessa",null,{"$f":"SUMPRODUCT(D9:D28,B9:B28)","v":0},"km",null,null,null,null,"Viikonloppuvuokraus",100,"€/vkl",null,null,null,"Yhetyskäyttöautolla ajettu kokonaismatka vuodessa",null,{"$f":"SUMPRODUCT(O9:O28,P9:P28)","v":0},"km",null,null,null,null,null,"Taksilla ajettu kokonaismatka vuodessa",null,{"$f":"SUMPRODUCT(X9:X28,Y9:Y28)","v":0},"km"]
["Autonvuokrauksen kokonaiskustannukset vuodessa",null,{"$f":"SUM(J9:J28)","v":0},"€",null,null,null,null,"Viikkovuokraus",350,"€/vk",null,null,null,"Kokonaiskustannukset vuodessa",null,{"$f":"SUM(U9:U28)","v":0},"€",null,null,null,null,null,"Kokonaiskustannukset vuodessa",null,{"$f":"SUM(AC9:AC28)","v":0},"€"]
["Kokonaispäästöt vuodessa",null,{"$f":"SUM(K9:K28)","v":0},"kg CO2e",null,null,null,null,null,null,null,null,null,null,"Kokonaispäästöt vuodessa",null,{"$f":"SUM(V9:V28)","v":0},"kg CO2e",null,null,null,null,null,"Kokonaispäästöt vuodessa",null,{"$f":"SUM(AD9:AD28)","v":0},"kg CO2e"]
[]
[]
["Vuokran pituus","Ajettu matka, per vuokra [km]","Vuokrahinta [€/vuokra]","Vastaavien matkojen määrä vuodessa","Käyttövoima","Lisäkuljettajien määrä","CDW","Muut extra maksut, per vuokra",null,"Kokonaiskustannukset [€]","Päästöt [kg CO2e]",null,"cost of rental [€/rental] - default equation",null,"Vastaavien matkojen määrä vuodessa","Ajettu matka, per vuokra [km]","Kesto, per vuokra [min]","Palvelun tyyppi","Käyttövoima","Vuokrahinta [€]","Kokonaiskustannukset [€]","Päästöt [kg CO2e]",null,"Vastaavien taksimatkojen määrä vuodessa","Ajettu matka, per taksimatka [km]","päivä / yö / viikonloppu","Käyttövoima","Taksimatkan kustannukset","Kokonaiskustannukset [€]","Päästöt [kg CO2e]"]
["valitse",null,{"$f":"IF(A9=TEXT($I$2,),$J$2,IF(A9=TEXT($I$3,),$J$3,IF(A9=TEXT($I$4,),$J$4,)))","v":0},1,"bensiini",0,null,null,null,{"$f":"IF(A9=TEXT($I$2,),(D9*(C9+F9*$C$31+IF(G9=\"YES\",$C$32,0)+H9)),IF(A9=TEXT($I$3,),(D9*(C9+F9*$C$31*3+IF(G9=\"YES\",$C$32,0)*3+H9)),IF(A9=TEXT($I$4,),(D9*(C9+F9*$C$31*7+IF(G9=\"YES\",$C$32,0)*7+H9)))))+IF(E9=TEXT($B$65,),($C$35*$C$40*B9)*D9,IF(E9=TEXT($C$65,),($C$36*$C$41*B9)*D9,IF(E9=TEXT($D$65,),($C$37*$C$42*B9)*D9,0)))","v":0},{"$f":"IF(E9=TEXT($B$65,),(($D$55+$D$56)*$C$35*B9+$D$57*B9)*D9,IF(E9=TEXT($C$65,),(($D$58+$D$59)*$C$36*B9+$D$60*B9)*D9,IF(E9=TEXT($D$65,),(($D$61+$D$62)*$C$37*B9+$D$63*B9)*D9,0)))","v":0},null,{"$f":"IF(A9=TEXT($I$2,),$J$2,IF(A9=TEXT($I$3,),$J$3,IF(A9=TEXT($I$4,),$J$4,)))","v":0},null,null,null,null,"Palvelu A","bensiini",{"$f":"IF(R9=TEXT($R$31,),($R$32+P9*$R$33+Q9*$R$34),IF(R9=TEXT($S$31,),($S$32+P9*$S$33+Q9*$S$34),IF(R9=TEXT($T$31,),($T$32+P9*$T$33+Q9*$T$34))))","v":0},{"$f":"T9*O9","v":0},{"$f":"IF(S9=TEXT($B$65,),(($D$55+$D$56)*$Q$39*P9+$D$57*P9)*O9,IF(S9=TEXT($C$65,),(($D$58+$D$59)*$Q$40*P9+$D$60*P9)*O9,IF(S9=TEXT($D$65,),(($D$61+$D$62)*$Q$41*P9+$D$63*P9)*O9,0)))","v":0},null,null,null,"viikonloppu","diesel",{"$f":"IF(Z9=TEXT($AA$31,),($AA$32+$AA$33*Y9),(IF(Z9=TEXT($AB$31,),($AB$32+Y9*$AB$33),(IF(Z9=TEXT($AC$31,),($AC$32+Y9*$AC$33),0)))))*IF(X9>0,1,0)","v":0},{"$f":"X9*AB9","v":0},{"$f":"IF(AA9=$B$65,($D$55+$D$56)*$Z$39*Y9*X9+$D$57*Y9*X9,IF(AA9=$C$65,($D$58+$D$59)*$Z$40*Y9*X9+$D$60*Y9*X9,IF(AA9=$D$65,($D$61+$D$62)*$Z$41*Y9*X9+$D$63*Y9*X9,0)))","v":0}]
["valitse",null,0,1,"bensiini",0,null,null,null,0,{"$f":"IF(E10=TEXT($B$65,),(($D$55+$D$56)*$C$35*B10+$D$57*B10)*D10,IF(E10=TEXT($C$65,),(($D$58+$D$59)*$C$35*B10+$D$60*B10)*D10,IF(E10=TEXT($D$65,),(($D$61+$D$62)*$C$35*B10+$D$63*B10)*D10,0)))","v":0},null,0,null,null,null,null,"Palvelu A","bensiini",0,{"$f":"T10*O10","v":0},0,null,null,null,"viikonloppu","diesel",0,0,{"$f":"IF(AA10=$B$65,($D$55+$D$56)*$Z$39*Y10*X10+$D$57*Y10*X10,IF(AA10=$C$65,($D$58+$D$59)*$Z$40*Y10*X10+$D$60*Y10*X10,IF(AA10=$D$65,($D$61+$D$62)*$Z$41*Y10*X10+$D$63*Y10*X10,0)))","v":0}]
["valitse",null,0,1,"bensiini",0,null,null,null,0,0,null,0,null,null,null,null,"Palvelu A","bensiini",0,0,0,null,null,null,"viikonloppu","diesel",0,0,{"$f":"IF(AA11=$B$65,($D$55+$D$56)*$Z$39*Y11*X11+$D$57*Y11*X11,IF(AA11=$C$65,($D$58+$D$59)*$Z$40*Y11*X11+$D$60*Y11*X11,IF(AA11=$D$65,($D$61+$D$62)*$Z$41*Y11*X11+$D$63*Y11*X11,0)))","v":0}]
["valitse",null,0,1,"bensiini",0,null,null,null,0,0,null,0,null,null,null,null,"Palvelu A","bensiini",0,0,0,null,null,null,"viikonloppu","diesel",0,0,0]
["valitse",null,0,1,"bensiini",0,null,null,null,0,0,null,0,null,null,null,null,"Palvelu A","bensiini",0,0,0,null,null,null,"viikonloppu","diesel",0,0,0]
["valitse",null,0,1,"bensiini",0,null,null,null,0,0,null,0,null,null,null,null,"Palvelu A","bensiini",0,0,0,null,null,null,"viikonloppu","diesel",0,0,0]
["valitse",null,0,1,"bensiini",0,null,null,null,0,0,null,0,null,null,null,null,"Palvelu A","bensiini",0,0,0,null,null,null,"viikonloppu","diesel",0,0,0]
["valitse",null,0,1,"bensiini",0,null,null,null,0,0,null,{"$f":"IF(A16=TEXT($I$2,),$J$2,IF(A16=TEXT($I$3,),$J$3,IF(A16=TEXT($I$4,),$J$4,)))","v":0},null,null,null,null,"Palvelu A","bensiini",0,0,0,null,null,null,"viikonloppu","diesel",0,0,0]
["valitse",null,0,1,"bensiini",0,null,null,null,0,0,null,0,null,null,null,null,"Palvelu A","bensiini",0,0,0,null,null,null,"viikonloppu","diesel",0,0,0]
["valitse",null,0,1,"bensiini",0,null,null,null,0,0,null,0,null,null,null,null,"Palvelu A","bensiini",0,0,0,null,null,null,"viikonloppu","diesel",0,0,0]
["valitse",null,0,1,"bensiini",0,null,null,null,0,0,null,0,null,null,null,null,"Palvelu A","bensiini",0,0,0,null,null,null,"viikonloppu","diesel",0,0,0]
["valitse",null,0,1,"bensiini",0,null,null,null,0,0,null,0,null,null,null,null,"Palvelu A","bensiini",0,0,0,null,null,null,"viikonloppu","diesel",0,0,0]
["valitse",null,0,1,"bensiini",0,null,null,null,0,0,null,0,null,null,null,null,"Palvelu A","bensiini",0,0,0,null,null,null,"viikonloppu","diesel",0,0,0]
["valitse",null,0,1,"bensiini",0,null,null,null,0,0,null,0,null,null,null,null,"Palvelu A","bensiini",0,0,0,null,null,null,"viikonloppu","diesel",0,0,0]
["valitse",null,0,1,"bensiini",0,null,null,null,0,0,null,0,null,null,null,null,"Palvelu A","bensiini",0,0,0,null,null,null,"viikonloppu","diesel",0,0,0]
["valitse",null,0,1,"bensiini",0,null,null,null,0,0,null,0,null,null,null,null,"Palvelu A","bensiini",0,0,0,null,null,null,"viikonloppu","diesel",0,0,0]
["valitse",null,0,1,"bensiini",0,null,null,null,0,0,null,0,null,null,null,null,"Palvelu A","bensiini",0,0,0,null,null,null,"viikonloppu","diesel",0,0,0]
["valitse",null,0,1,"bensiini",0,null,null,null,0,0,null,0,null,null,null,null,"Palvelu A","bensiini",0,0,0,null,null,null,"viikonloppu","diesel",0,0,0]
["valitse",null,0,1,"bensiini",0,null,null,null,0,0,null,0,null,null,null,null,"Palvelu A","bensiini",0,0,0,null,null,null,"viikonloppu","diesel",0,0,0]
["valitse",null,0,1,"bensiini",0,null,null,null,0,0,null,0,null,null,null,null,"Palvelu A","bensiini",0,0,0,null,null,null,"viikonloppu","diesel",0,0,0]
[]
["Muut valinnaiset vuokrakustannukset"]
["Lisäkuljettaja","€/vrk",10,null,null,null,null,null,null,null,null,null,null,null,null,null,"select","Palvelu A","Palvelu B","Palvelu C",null,null,null,null,null,null,"päivä","yö","viikonloppu"]
["CDW-vapautus","€/vrk",15,null,null,null,null,null,null,null,null,null,null,null,"Aloitusmaksu",null,"€",0,0,"ei käytössä",null,null,null,"Aloitusmaksu",null,"€",4,7,7]
[null,null,null,null,null,null,null,null,null,null,null,null,null,null,"Hinta, km",null,"€/km",0,0.15,null,null,null,null,"Hinta, km",null,"€/km",1,1.1000000000000001,1.1000000000000001]
["Auton parametrit",null,null,null,null,null,null,null,null,null,null,null,null,null,"Hinta, minuutti",null,"€/min",0.47,0.2,null,null,null,null,"Hinta, minuutti",null,"€/min","ei käytössä"]
["Polttoaineenkulutus (bensiini)","l/km",5.5E-2]
["Polttoaineenkulutus (diesel)","l/km",5.5E-2]
["Sähkönkulutus","kWh/km",1.7000000000000001E-2]
[null,null,null,null,null,null,null,null,null,null,null,null,null,null,"Auton parametrit",null,null,null,null,null,null,null,null,"Auton parametrit"]
["Polttoaineen hinta",null,null,null,null,null,null,null,null,null,null,null,null,null,"Polttoaineenkulutus (bensiini)","l/km",5.5E-2,null,null,null,null,null,null,"Polttoaineenkulutus (bensiini)","l/km",5.5E-2]
["Bensiini","€/l",1.45,null,null,null,null,null,null,null,null,null,null,null,"Polttoaineenkulutus (diesel)","l/km",5.5E-2,null,null,null,null,null,null,"Polttoaineenkulutus (diesel)","l/km",5.5E-2]
["Diesel","€/l",1.25,null,null,null,null,null,null,null,null,null,null,null,"Sähkönkulutus","kWh/km",0.17,null,null,null,null,null,null,"Sähkönkulutus","kWh/km",0.17]
["Sähkö","€/kWh",0.22]
[]
["Elinikäinen mittarilukema"]
["Bensiini / dieselauto, keskikokoinen","km",300000]
["Keskikokoinen sähköauto (40 kWh akku)","km",200000]
[]
[]
["Päästökertoimet (Lähde: Autokalkulaattori.fi) ↓"]
["auton valmistus (Lähde: Autokalkulaattori.fi)"]
["Bensiini / dieselauto, keskikokoinen","t CO2e",5.36]
["Keskikokoinen sähköauto (40 kWh akku)","t CO2e",{"$f":"6.52+40*0.1","v":10.52}]
[]
["Päästökertoimet (Lähde: Autokalkulaattori.fi)"]
["Bensiini","suorat päästöt","kg CO2-ekv/l",2.3479999999999999]
[null,"polttoainetuotannon päästöt","kg CO2-ekv/l",0.65500000000000003]
[null,"auton tuotannon päästöt","kg CO2-ekv/km",{"$f":"C51*1000/C45","v":1.7866666666666666E-2}]
["Diesel","suorat päästöt","kg CO2-ekv/l",2.6890000000000001]
[null,"polttoainetuotannon päästöt","kg CO2-ekv/l",0.75]
[null,"auton tuotannon päästöt","kg CO2-ekv/km",{"$f":"C51*1000/C45","v":1.7866666666666666E-2}]
["Sähkö","suorat päästöt","kg CO2-ekv/kWh",9.6000000000000002E-2]
[null,"polttoainetuotannon päästöt","kg CO2-ekv/kWh",1.6E-2]
[null,"auton tuotannon päästöt","kg CO2-ekv/km",{"$f":"C52*1000/C46","v":5.2600000000000001E-2}]
[]
["Käyttövoima","bensiini","diesel","sähkö"]

{"sheet":"Julkinen liikenne","index":2,"n_rows":44,"n_cols":13,"rows_kept":44,"cut":false,"hidden":false,"merged":[[38,2,39,3],[40,2,43,8]]}
["Julkinen liikenne"]
["Yhteenveto (kaupunkiseudun julkinen liikenne):",null,null,null,null,null,null,"Kuukaudet, joilla on voimassa oleva kaupungin julkisen liikenteen kausilippu kotitaloutta kohti vuodessa"]
["Kaupunkiseudun julkisessa liikenteessä matkustettu kokonaismatka vuodessa",null,{"$f":"SUM(F15:F34)","v":0},"km",null,null,null,"aikuiset",null,0]
["Kokonaiskustannukset vuodessa, kaupunkiseudun julkinen liikennne",null,{"$f":"SUMIF(B15:B34,TEXT(A39,),I15:I34)+SUMIF(B15:B34,TEXT(A41,),I15:I34)+SUMIF(B15:B34,TEXT(A43,),I15:I34)+SUMIF(B15:B34,TEXT(A44,),I15:I34)+J8*J3+J9*J4","v":0},"€",null,null,null,"lapset",null,0]
["Kokonaispäästöt vuodessa",null,{"$f":"SUMIF(B15:B34,TEXT(A39,),J15:J34)+SUMIF(B15:B34,TEXT(A41,),J15:J34)+SUMIF(B15:B34,TEXT(A43,),J15:J34)+SUMIF(B15:B34,TEXT(A44,),J15:J34)","v":0},"kg CO2e"]
[null,null,null,null,null,null,null,"Julkisen liikenteen lippujen hinta (kausilippu ja erilaiset kertaliput)"]
["Yhteenveto (kaukoliikenne)",null,null,null,null,null,null,"Lipputyyppi"]
["Kaukoliikenteessä matkustettu kokonaismatka vuodessa",null,{"$f":"SUM(G15:G34)","v":0},"km",null,null,null,"Kausilippu (aikuinen)","€/kk",55]
["Kokonaiskustannukset vuodessa, kaukoliikenne",null,{"$f":"SUMIF(B15:B34,TEXT(A40,),I15:I34)+SUMIF(B15:B34,TEXT(A42,),I15:I34)","v":0},"€",null,null,null,"Kausilippu (lapsi)","€/kk",27.4]
["Kokonaispäästöt vuodessa",null,{"$f":"SUMIF(B15:B34,TEXT(A40,),J15:J34)+SUMIF(B15:B34,TEXT(A42,),J15:J34)","v":0},"kg CO2e",null,null,null,"Kertalippu A","€/lippu",3]
[null,null,null,null,null,null,null,"Kertalippu B","€/lippu",4]
[null,null,null,null,null,null,null,"Kertalippu C","€/lippu",6]
[]
["Vastaavien matkojen määrä vuodessa","Kuljetustapa","Matkan pituus [km]","Lipputyyppi","Kaukoliikenteen lipun hinta","city public transport distance, per defined number of trips [km]","long-distance public transport distance, per defined number of trips [km]","Matkan hinta (jos maksetaan matkaa kohti) [€]","Kokonaiskustannukset (jos maksetaan matkaa kohti) [€]","Päästöt [kg CO2e]",null,"distance per trip","long distance transport ticket price"]
[null,"valitse",{"$f":"IF(B15=TEXT($A$39,),10,IF(B15=TEXT($A$43,),5,IF(B15=TEXT($A$44,),10,IF(B15=TEXT($A$41,),15,IF(B15=TEXT($A$40,),150,IF(B15=TEXT($A$42,),300,))))))","v":0},"valitse",{"$f":"IF(B15=TEXT($A$40,),20,IF(B15=TEXT($A$42,),40,0))","v":0},{"$f":"IF(B15=TEXT($A$39,),A15*C15,IF(B15=TEXT($A$43,),A15*C15,IF(B15=TEXT($A$44,),A15*C15,IF(B15=TEXT($A$41,),A15*C15))))","v":false},{"$f":"IF(B15=TEXT($A$40,),A15*C15,IF(B15=TEXT($A$42,),A15*C15))","v":false},{"$f":"IF(D15=TEXT($H$8,),0,IF(D15=TEXT($H$10,),$J$10,(IF(D15=TEXT($H$11,),$J$11,(IF(D15=TEXT($H$12,),$J$12,0))))))+E15","v":0},{"$f":"A15*H15","v":0},{"$f":"(IF(B15=TEXT($A$39,),$B$39,IF(B15=TEXT($A$40,),$B$40,IF(B15=TEXT($A$41,),$B$41,IF(B15=TEXT($A$42,),$B$42,IF(B15=TEXT($A$43,),$B$43,IF(B15=TEXT($A$44,),$B$44,0)))))))/1000*C15*A15","v":0},null,{"$f":"IF(B15=TEXT($A$39,),10,IF(B15=TEXT($A$43,),5,IF(B15=TEXT($A$44,),10,IF(B15=TEXT($A$41,),15,IF(B15=TEXT($A$40,),150,IF(B15=TEXT($A$42,),300,))))))","v":0},{"$f":"IF(B15=TEXT($A$40,),20,IF(B15=TEXT($A$42,),40,0))","v":0}]
[null,"valitse",0,"valitse",0,{"$f":"IF(B16=TEXT($A$39,),A16*C16,IF(B16=TEXT($A$43,),A16*C16,IF(B16=TEXT($A$44,),A16*C16,IF(B16=TEXT($A$41,),A16*C16))))","v":false},{"$f":"IF(B16=TEXT($A$40,),A16*C16,IF(B16=TEXT($A$42,),A16*C16))","v":false},0,{"$f":"A16*H16","v":0},0,null,{"$f":"IF(B16=TEXT($A$39,),10,IF(B16=TEXT($A$43,),5,IF(B16=TEXT($A$44,),10,IF(B16=TEXT($A$41,),15,IF(B16=TEXT($A$40,),150,IF(B16=TEXT($A$42,),300,))))))","v":0},{"$f":"IF(B16=TEXT($A$40,),20,IF(B16=TEXT($A$42,),40,0))","v":0}]
[null,"valitse",0,"valitse",0,false,false,0,0,0,null,0,0]
[null,"valitse",0,"valitse",0,false,false,0,0,0,null,0,0]
[null,"valitse",0,"valitse",0,false,false,0,0,0,null,0,0]
[null,"valitse",0,"valitse",0,false,false,0,0,0,null,0,0]
[null,"valitse",0,"valitse",0,false,false,0,0,0,null,0,0]
[null,"valitse",0,"valitse",0,false,false,0,0,0,null,0,0]
[null,"valitse",0,"valitse",0,false,false,0,0,0,null,0,0]
[null,"valitse",0,"valitse",0,false,false,0,0,0,null,0,0]
[null,"valitse",0,"valitse",0,false,false,0,0,0,null,0,0]
[null,"valitse",0,"valitse",0,false,false,0,0,0,null,0,0]
[null,"valitse",0,"valitse",0,false,false,0,0,0,null,0,0]
[null,"valitse",0,"valitse",0,false,false,0,0,0,null,0,0]
[null,"valitse",0,"valitse",0,false,false,0,0,0,null,0,0]
[null,"valitse",0,"valitse",0,false,false,0,0,0,null,0,0]
[null,"valitse",0,"valitse",0,false,false,0,0,0,null,0,0]
[null,"valitse",0,"valitse",0,false,false,0,0,0,null,0,0]
[null,"valitse",0,"valitse",0,false,false,0,0,0,null,0,0]
[null,"valitse",0,"valitse",0,false,false,0,0,0,null,0,0]
[]
["Hidden rows below contain emission factors from Ilmastodieetti.fi ↓"]
["Source: VTT’s LIPASTO database (data from 2016), complemented with estimated emissions from the fuel supply chain (diesel approximately 20%) and fleet production (approximately 1 g per passenger km). (as done in Ilmastodieetti)",null,null,null,null,null,null,null,"http://lipasto.vtt.fi/yksikkopaastot/henkiloliikenne/tieliikenne/linja-autot/bussilinjaautokeskimaarin.htm"]
["valitse","g CO2eq/passenger km"]
["bussi, paikallinen",{"$f":"53*1.2+1","v":64.599999999999994},"Note: Lipasto gives 41 g CO2eq/hkm pitkän matkan bussille and 53 g CO2eq/hkm kaupunkibussille (average in 2016)."]
["bussi, kaukoliikenne",{"$f":"41*1.2+1","v":50.199999999999996}]
["juna, paikallinen",1,"VR and HKL use green electricity, and the calculated emissions factor of green electricity is 0 g CO2eq/kWh. The figure 1 g CO2eq/kWh is derived from the estimated emissions from fleet production.  (as done in Ilmastodieetti)\n\nAccording to Lipast (2016) Intercity train's energy consumption is 0,054 kWh/pkm and 0,071 kWh/pkm per Sm5 (FLIRT) commuter train. Multiplying these values with the emission factor of electricity production leads to far lower numbers than the used 1 g CO2e. 6,048 g/pkm for the intercity train and 7,952 g/pkm for the commuter train.\n\nFor metro the Lipasto reported consumption is 0,18 kWh/pkm (20,16 g CO2e/pkm if average grid mix is considered).\n\nFor metro the reported consumption is 0,24 kWh/pkm (60,88 g CO2e/pkm if average grid mix is considered)."]
["juna, kaukoliikenne",1]
["raitiovaunu",1]
["metro",1]

{"sheet":"Aktiivinen liikenne","index":3,"n_rows":49,"n_cols":18,"rows_kept":49,"cut":false,"hidden":false,"merged":[]}
["Polkupyörä (aikuinen)",null,null,null,"Sähköpyörä",null,null,null,"(Sähköinen) laatikkopyörä",null,null,null,null,"Kaupunkipyörät",null,null,null,"E-scooters - may be implemeted, depending on the data availability"]
[]
["Polkupyörien määrä kotitaloutta kohti",0,null,null,"Sähköpolkupyörien määrä kotitaloutta kohti",0,null,null,"Onko laatikkopyörä sähköistetty?",null,"EI",null,null,"Yhteenveto, kaupunkipyörät"]
["Pyöräilykuukaudet",0,"kk",null,"Sähköpyöräilykuukaudet",0,"kk",null,null,null,null,null,null,"Matkoja vuodessa",0,"matkoja"]
["Matkan keskimääräinen pituus",3.3,"km",null,"Matkan keskimääräinen pituus",3.3,"km",null,"Käytetty vai uusi?",null,"UUSI",null,null,"Kaupunkipyörällä ajettujen kilometrien määrä vuodessa",{"$f":"O4*P49","v":0},"km"]
[null,null,null,null,null,null,null,null,null,null,null,null,null,"Kokonaiskustannukset vuodessa",{"$f":"(P11+P12)*IF(O4=0,0,1)","v":0},"€"]
["Yhteenveto, polkupyörä (aikuinen)",null,null,null,"Yhteenveto, sähköpyörä",null,null,null,"Yhteeveto, laatikkopyörä",null,null,null,null,"Hinta per matka",{"$f":"O6/O4","v":{"$error":"#DIV/0!"}},"€"]
["Polkupyörällä ajettu kokonaismatka vuodessa",{"$f":"21*B4*bike_commute_km*2*bike_number","v":0},"km",null,"Sähköpolkupyörällä ajettu kokonaismatka vuodessa",{"$f":"21*F4*ebike_commute_km*2*ebike_number","v":0},"km",null,"(Sähkö)laatikkopyörällä ajettu kokonaismatka vuodessa",0,"km",null,null,"Päästöt vuodessa",{"$f":"P46*O4*IF(O4=0,0,1)","v":0},"kg CO2e"]
["Kuinka pitkään pidät polkupyöräsi?",15,"v",null,"Kuinka pitkään pidät sähköpolkupyöräsi?",15,"v",null,"Kuinka pitkään pidät laatikkopyöräsi?",15,"v"]
["Kokonaiskustannukset vuodessa",{"$f":"IF(B4=0,0,B3*((C14-C15)/B9+C16+C17/4+(C18/4)*IF(C20=\"KYLLÄ\",1,0)+C19/B9))","v":0},"€",null,"Kokonaiskustannukset vuodessa",{"$f":"IF(F4=0,0,F3*((G14-G15)/F9+G16+G17/4+G19/F9+(G27/F9)*IF(G21=\"KYLLÄ\",1,0)+(G18/4)*IF(G20=\"KYLLÄ\",1,0)+G33*((G25/G29)*(G30/1000))))","v":0},"€",null,"Kokonaiskustannukset vuodessa",{"$f":"IF(J8=0,0,(K14-K15)/J9+K16+K18/4+K20/J9+(K19/4)*IF(K21=\"KYLLÄ\",1,0)+(K33*((K25/K29)*(K30/1000)+(K27/J9)*IF(K22=\"KYLLÄ\",1,0))*IF(K3=\"KYLLÄ\",1,0)))","v":0},"€"]
["Päästöt vuodessa",{"$f":"IF(B3=0,0,B3*(C46*(1-(C15/C14))/B9))","v":0},"kg CO2e",null,"Päästöt vuodessa",{"$f":"IF(F4=0,0,F3*(G25/G29/1000*G33*(G41+G42)+G37*(1-(G15/G14))/F9+IF(G21=\"KYLLÄ\",G38*(1-(G15/G14))/F9,0)))","v":0},"kg CO2e",null,"Päästöt vuodessa",{"$f":"IF(J8=0,0,K25/K29/1000+K37*(1-(K15/K14))/J9*K33*(G41+G42)+IF(K22=\"KYLLÄ\",K38*(1-(K15/K14))/J9,0))","v":0},"kg CO2e",null,null,"Kausilippu","€",35]
[null,null,null,null,null,null,null,null,null,null,null,null,null,"Lisäkustannukset (jatkoajan kulut)","€",0]
[]
["Ostohinta","€",700,null,"Ostohinta","€",2500,null,"Ostohinta","€",{"$f":"IF(cargo_bike_electric=\"YES\",IF(cargo_bike_type=\"two-wheeler\",5000,4000),IF(cargo_bike_type=\"two-wheeler\",3000,2000))*IF(cargo_bike_new=\"USED\",0.5,1)","v":2000},{"$f":"IF(cargo_bike_electric=\"YES\",IF(cargo_bike_type=\"two-wheeler\",5000,4000),IF(cargo_bike_type=\"two-wheeler\",3000,2000))*IF(cargo_bike_new=\"USED\",0.5,1)","v":2000}]
["Jälleenmyyntiarvo","€",0,null,"Jälleenmyyntiarvo","€",0,null,"Jälleenmyyntiarvo","€",0]
["Vuosittaiset huoltokustannukset (perushuolto)","€",70,null,"Vuosittaiset huoltokustannukset (perushuolto)","€",100,null,"Vuosittaiset huoltokustannukset (perushuolto)","€",150]
["Kesärenkaat (pari)","€",50,null,"Kesärenkaat (pari)","€",50,null,"Pyörän tyyppi",null,"kaksipyöräinen"]
["Talvirenkaat (pari)","€",100,null,"Talvirenkaat (pari)","€",100,null,"Kesärenkaat (pari tai kolme)","€",{"$f":"IF(K17=\"two-wheeler\",50,75)","v":75},{"$f":"IF(K17=\"two-wheeler\",50,75)","v":75}]
["Lisätarvikkeet","€",null,null,"Lisätarvikkeet","€",null,null,"Talvirenkaat (pari tai kolme)","€",null,{"$f":"IF(K17=\"two-wheeler\",100,150)","v":150}]
["Ajatko talvella?",null,"NO",null,"Ajatko talvella?",null,"NO",null,"Lisätarvikkeet","€"]
[null,null,null,null,"Uuden / toisen akun ostaminen sähköpyörän omistajuuden aikana",null,"NO",null,"Ajatko talvella?",null,"NO"]
[null,null,null,null,null,null,null,null,"Uuden / toisen akun ostaminen sähköpyörän omistajuuden aikana",null,"NO"]
[]
["Polkupyörä (lapsi)",null,null,null,"Akun parametrit",null,null,null,"Akun parametrit"]
["Polkupyörien määrä kotitaloutta kohti",0,null,null,"Akun kapasiteetti (Wh)","Wh",400,null,"Akun kapasiteetti (Wh)","Wh",400]
["Pyöräilykuukaudet",0,"kk",null,"Matka yhdellä latauksella","km",40,null,"Matka yhdellä latauksella","km",40]
["Matkan keskimääräinen pituus",3.3,"km",null,"Uuden akun hinta","€",500,null,"Uuden akun hinta","€",500]
[null,null,null,null,"Akun käyttöikä","latauksia",300,null,"Akun käyttöikä","latauksia",300]
["Yhteenveto, polkupyörä (lapsi)",null,null,null,"Latauksen hyötysuhde",null,0.8,null,"Latauksen hyötysuhde",null,0.8]
["Polkupyörällä ajettu kokonaismatka vuodessa",{"$f":"21*B26*bike_child_commute_km*2*bike_child_number","v":0},"km",null,"Sähkön hinta","€/kWh",0.22,null,"Sähkön hinta","€/kWh",0.22]
["Kuinka pitkään pidät polkupyöräsi?",5,"v"]
["Kokonaiskustannukset vuodessa",{"$f":"IF(B26=0,0,B25*((C36-C37)/B31+C38+C39/4+(C40/4)*IF(C42=\"KYLLÄ\",1,0)+C41/B31))","v":0},"€",null,"Lasketut arvot",null,null,null,"Lasketut arvot"]
["Päästöt vuodessa",{"$f":"IF(B26=0,0,B25*(C46*(1-(C37/C36))/B31))","v":0},"kg CO2e",null,"Latauksien määrä vuodessa","latauksia/vuosi",{"$f":"F8/G26","v":0},null,"Latauksien määrä vuodessa","latauksia/vuosi",{"$f":"J8/K26","v":0}]
[null,null,null,null,"Akun käyttöikä","vuotta",{"$f":"G28/G33","v":{"$error":"#DIV/0!"}},null,"Akun käyttöikä","vuotta",{"$f":"K28/K33","v":{"$error":"#DIV/0!"}}]
[]
["Ostohinta","€",300,null,"Päästökerroin, IPCC 2013 (Lähde: Ecoinvent v7)",null,null,null,"Päästökerroin, IPCC 2013 (Lähde: Zacke (2016), Ecoinvent v7)"]
["Jälleenmyyntiarvo","€",100,null,"sähköpyörä, tuotanto","kg CO2e",159,null,"laatikkopyörä, tuotanto","kg CO2e",450]
["Vuosittaiset huoltokustannukset (perushuolto)","€",35,null,"battery, Li-ion, rechargeable, prismatic, production","kg CO2e",8.1999999999999993,null,"battery, Li-ion, rechargeable, prismatic, production","kg CO2e",8.1999999999999993]
["Kesärenkaat (pari)","€",50]
["Talvirenkaat (pari)","€",100,null,"Sähkö (Lähde: Autokalkulaattori)"]
["Lisätarvikkeet","€",null,null,"suorat päästöt","kg CO2-ekv/kWh",9.6000000000000002E-2]
["Ajatko talvella?",null,"NO",null,"tuotannon päästöt","kg CO2-ekv/kWh",1.6E-2]
[]
[]
["Päästökerroin, IPCC 2013 (Lähde: Ecoinvent v7)",null,null,null,null,null,null,null,null,null,null,null,null,"emission factor, IPPC 2013 (Source: Ecoinvent v7)"]
[null,"kg CO2e",141.6,null,null,null,null,null,null,null,null,null,null,"bike sharing, per average ride","kg CO2e",0.61499999999999999]
[]
[null,null,null,null,null,null,null,null,null,null,null,null,null,"Keskimääräisen matkan pituus kaupunginpyörällä. Lähde: City Bike Finland"]
[null,null,null,null,null,null,null,null,null,null,null,null,null,"Matkan pituus, keskimäärin 2019-2020, Helsinki ja Espoo","km",{"$f":"AVERAGE('Ciry Bike Finland - data'!B17:C17)","v":2.220911607142857}]

{"sheet":"Ciry Bike Finland - data","index":4,"n_rows":17,"n_cols":3,"rows_kept":17,"cut":false,"hidden":true,"merged":[]}
["City Bikes Finland"]
["Bike sharing in Helsinki and Espoo (combined data)"]
["Average distance of a single bike sharing trip in 2020, in kilometers"]
[]
["Data source: dev.hsl.fi/citybikes/od-trips-2020/od-trips-2020.zip"]
["Data retrieved 13.11.2020"]
[]
["km",2019,2020]
["March",null,{"$f":"2525.5/1000","v":2.5255000000000001}]
["April",{"$f":"2022/1000","v":2.0219999999999998},{"$f":"2606.5/1000","v":2.6065}]
["May",{"$f":"2083.5/1000","v":2.0834999999999999},{"$f":"2598.8/1000","v":2.5988000000000002}]
["June",{"$f":"2189/1000","v":2.1890000000000001},{"$f":"2462.1/1000","v":2.4621}]
["July",{"$f":"2166.3/1000","v":2.1663000000000001},{"$f":"2288.5/1000","v":2.2885}]
["August",{"$f":"2099.9/1000","v":2.0998999999999999},{"$f":"2333.4/1000","v":2.3334000000000001}]
["September",{"$f":"1944.5/1000","v":1.9444999999999999},{"$f":"2171.2/1000","v":2.1711999999999998}]
["October",{"$f":"1848.2/1000","v":1.8482000000000001},{"$f":"2144.7/1000","v":2.1446999999999998}]
["average trip",{"$f":"AVERAGE(B10:B16)","v":2.0504857142857142},{"$f":"AVERAGE(C9:C16)","v":2.3913375000000001}]